fUSD/lending_fUSD_20251026
["ID","MTS","AMOUNT","RATE_DAILY","PERIOD"]
[392426093,1761465034198,-500.0,0.00035989,9]
[392426094,1761465034209,-500.0,0.00035989,9]
[392426095,1761465034219,-500.0,0.00035989,9]
[392426096,1761465034229,-500.0,0.00035989,9]
[392426097,1761465034239,-500.0,0.00035989,9]
[392426098,1761465034250,-222.92812529,0.00035989,9]
[392426099,1761465034260,-500.0,0.00035989,9]
[392426100,1761465034270,-500.0,0.00035989,9]
[392426101,1761465034280,-500.0,0.00035989,9]
[392426102,1761465034291,-500.0,0.00035989,9]
[392426103,1761465034301,-33708.05635955,0.0003599,3]
[392426105,1761465039657,-220.3,0.00034333,2]
[392426106,1761465039667,-5352.99828279,0.0003599,3]
[392426107,1761465039731,-886.59563417,0.0003599,3]
[392426108,1761465040032,-5334.96364349,0.0003599,3]
[392426109,1761465040042,-151.0,0.0003599,30]
[392426110,1761465040052,-188677.558,0.0003599,3]
[392426111,1761465040063,-171423.978088,0.0003599,3]
[392426112,1761465040072,-252.398066,0.0003599,30]
[392426113,1761465040081,-252.398066,0.0003599,30]
[392426114,1761465040091,-252.398066,0.0003599,30]
[392426115,1761465040101,-151.0,0.0003599,30]
[392426116,1761465040111,-252.398066,0.0003599,30]
[392426117,1761465040120,-177.24027425,0.0003599,2]
[392426118,1761465040128,-151.0,0.0003599,30]
[392426119,1761465040139,-151.0,0.0003599,30]
[392426120,1761465040149,-151.0,0.0003599,30]
[392426121,1761465040159,-151.0,0.0003599,30]
[392426122,1761465040168,-151.0,0.0003599,30]
[392426123,1761465040177,-7094.25765266,0.0003599,2]
[392426124,1761465040187,-500.0,0.00035991,9]
[392426125,1761465040196,-500.0,0.00035991,9]
[392426126,1761465040205,-500.0,0.00035991,9]
[392426128,1761465040214,-500.0,0.00035991,9]
[392426130,1761465040223,-500.0,0.00035991,9]
[392426132,1761465040232,-500.0,0.00035991,7]
[392426135,1761465040242,-500.0,0.00035991,9]
[392426137,1761465040252,-500.0,0.00035991,9]
[392426138,1761465040262,-500.0,0.00035991,9]
[392426140,1761465040272,-500.0,0.00035991,9]
[392426142,1761465040281,-500.0,0.00035991,9]
[392426143,1761465040290,-500.0,0.00035991,9]
[392426144,1761465040299,-509.18841338,0.00035991,9]
[392426145,1761465040309,-500.0,0.00035991,9]
[392426146,1761465040318,-500.0,0.00035991,9]
[392426147,1761465040328,-500.0,0.00035991,9]
[392426148,1761465040337,-500.0,0.00035991,9]
[392426149,1761465040345,-500.0,0.00035991,7]
[392426150,1761465040354,-500.0,0.00035991,9]
[392426151,1761465040363,-500.0,0.00035991,9]
[392426152,1761465040372,-500.0,0.00035991,9]
[392426153,1761465040380,-500.0,0.00035991,2]
[392426154,1761465040389,-568.48260373,0.00035991,9]
[392426155,1761465040398,-402.17298564,0.00035991,9]
[392426156,1761465040407,-500.0,0.00035991,9]
[392426157,1761465040416,-500.0,0.00035991,9]
[392426158,1761465040425,-500.0,0.00035991,9]
[392426159,1761465040434,-538.75951064,0.00035991,9]
[392426160,1761465040443,-356.11252257,0.00035991,9]
[392426161,1761465040453,-500.0,0.00035991,9]
[392426162,1761465040464,-500.0,0.00035991,9]
[392426163,1761465040474,-500.0,0.00035991,9]
[392426164,1761465040483,-500.0,0.00035991,9]
[392426165,1761465040492,-500.0,0.00035991,9]
[392426166,1761465040501,-485.0,0.00035991,9]
[392426167,1761465040510,-213.24860999,0.00035991,9]
[392426168,1761465040519,-500.0,0.00035991,9]
[392426169,1761465040528,-615.24516226,0.00035991,9]
[392426170,1761465040541,-517.61,0.00035991,9]
[392426171,1761465040550,-500.0,0.00035991,9]
[392426172,1761465040559,-187.00437377,0.00035991,9]
[392426173,1761465040568,-500.0,0.00035991,9]
[392426174,1761465040577,-500.0,0.00035991,9]
[392426175,1761465040587,-280.84319378,0.00035991,9]
[392426176,1761465040598,-231.60827316,0.00035991,9]
[392426177,1761465040609,-101769.3864234,0.00035992,2]
[392426178,1761465040618,-3012.3510662,0.00035992,2]
[392426179,1761465040627,-923.0395105,0.00035992,2]
[392426180,1761465040636,-151.0,0.00035992,30]
[392426181,1761465040645,-151.0,0.00035992,30]
[392426182,1761465040654,-151.0,0.00035992,30]
[392426183,1761465040663,-151.0,0.00035992,30]
[392426184,1761465040673,-151.0,0.00035992,30]
[392426185,1761465040683,-151.0,0.00035992,30]
[392426186,1761465040694,-151.0,0.00035992,30]
[392426187,1761465040704,-151.0,0.00035992,30]
[392426188,1761465040715,-252.398066,0.00035992,30]
[392426189,1761465040724,-252.398066,0.00035992,30]
[392426190,1761465040733,-252.398066,0.00035992,30]
[392426191,1761465040742,-252.398066,0.00035992,30]
[392426192,1761465040751,-151.0,0.00035992,30]
[392426193,1761465040761,-151.0,0.00035992,30]
[392426194,1761465040771,-190.132176,0.00035992,30]
[392426195,1761465040780,-151.0,0.00035992,30]
[392426196,1761465040788,-151.0,0.00035992,30]
[392426197,1761465040798,-4761.7771691,0.00035997,3]
[392426198,1761465040807,-382.51508768,0.00035998,9]
[392426199,1761465040816,-500.0,0.00035999,9]
[392426200,1761465040825,-500.0,0.00035999,9]
[392426201,1761465040835,-500.0,0.00035999,9]
[392426202,1761465040844,-623.41902,0.00035999,2]
[392426203,1761465040853,-500.0,0.00035999,7]
[392426204,1761465040864,-500.0,0.00035999,2]
[392426205,1761465040873,-39701.33871101,0.00036,32]
[392426206,1761465040886,-2902.79061251,0.00036,32]
[392426207,1761465040897,-832.35532283,0.00036,32]
[392426208,1761465040914,-735.2070627,0.00036,32]
[392426209,1761465040925,-318.8230133,0.00036,32]
[392426216,1761465042719,-151.0,0.0003599,30]
[392426217,1761465042729,-500.0,0.00035991,9]
[392426218,1761465042738,-193.458186,0.00035992,30]
[392426219,1761465042748,-3496.16330336,0.00036,32]
[392426220,1761465042760,-41165.10831851,0.00036,32]
[392426221,1761465042770,-532348.49644314,0.00036,2]
[392426222,1761465042779,-200.0,0.00036,2]
[392426223,1761465042788,-151.0,0.00036,30]
[392426224,1761465042797,-151.0,0.00036,30]
[392426225,1761465042806,-151.0,0.00036,30]
[392426226,1761465042815,-151.326815,0.00036,30]
[392426227,1761465042824,-151.0,0.00036,30]
[392426228,1761465042833,-151.0,0.00036,30]
[392426229,1761465042842,-151.0,0.00036,30]
[392426230,1761465042851,-151.0,0.00036,30]
[392426231,1761465042860,-151.0,0.00036,30]
[392426232,1761465042869,-151.0,0.00036,30]
[392426233,1761465042878,-151.0,0.00036,30]
[392426234,1761465042887,-151.0,0.00036,30]
[392426235,1761465042896,-151.0,0.00036,30]
[392426236,1761465042905,-151.0,0.00036,30]
[392426237,1761465042918,-151.0,0.00036,30]
[392426238,1761465042927,-151.0,0.00036,30]
[392426239,1761465042937,-151.0,0.00036,30]
[392426240,1761465042946,-252.398066,0.00036,30]
[392426241,1761465042955,-252.398066,0.00036,30]
[392426242,1761465042965,-252.398066,0.00036,30]
[392426243,1761465042974,-252.398066,0.00036,30]
[392426244,1761465042983,-252.398066,0.00036,30]
[392426245,1761465042993,-252.398066,0.00036,30]
[392426246,1761465043003,-252.398066,0.00036,30]
[392426247,1761465043012,-252.398066,0.00036,30]
[392426248,1761465043021,-200.0,0.00036,2]
[392426249,1761465043030,-151.0,0.00036,30]
[392426250,1761465043039,-151.0,0.00036,30]
[392426251,1761465043049,-151.0,0.00036,30]
[392426253,1761465043058,-151.0,0.00036,30]
[392426254,1761465043066,-151.0,0.00036,30]
[392426255,1761465043076,-151.0,0.00036,30]
[392426256,1761465043085,-151.0,0.00036,30]
[392426257,1761465043096,-225.264214,0.00036,30]
[392426258,1761465043106,-263.56433619,0.00036007,15]
[392426259,1761465043115,-505.91963917,0.00036007,15]
[392426260,1761465043124,-506.00199717,0.00036007,15]
[392426261,1761465043134,-224.89291115,0.00036007,15]
[392426262,1761465043143,-508.2799414,0.00036007,15]
[392426263,1761465043153,-150.0,0.00036007,15]
[392426264,1761465043162,-150.0,0.00036007,15]
[392426265,1761465043172,-500.0,0.00036007,15]
[392426266,1761465043182,-150.0,0.00036007,15]
[392426267,1761465043191,-150.0,0.00036007,15]
[392426268,1761465043200,-150.0,0.00036007,15]
[392426269,1761465043210,-602.77401703,0.00036007,15]
[392426270,1761465043219,-150.0,0.00036007,15]
[392426271,1761465043228,-1809.57371916,0.00036018,2]
[392426272,1761465043239,-490.65383081,0.00036018,2]
[392426273,1761465043248,-168.0,0.00036019,2]
[392426274,1761465043257,-168.0,0.00036061,2]
[392426275,1761465043265,-150.0,0.00036062,15]
[392426276,1761465043274,-150.0,0.00036062,15]
[392426277,1761465043283,-507.28474439,0.00036062,15]
[392426278,1761465043291,-150.0,0.00036062,15]
[392426279,1761465043300,-150.0,0.00036062,15]
[392426280,1761465043309,-153.74685205,0.00036062,15]
[392426281,1761465043318,-151.33382109,0.00036062,15]
[392426282,1761465043328,-1809.57371916,0.00036083,2]
[392426283,1761465043337,-490.65383081,0.00036083,2]
[392426284,1761465043346,-432.0,0.00036089,5]
[392426285,1761465043355,-154.194046,0.00036099,30]
[392426286,1761465043364,-200.380673,0.00036099,30]
[392426287,1761465043373,-150.818734,0.00036099,30]
[392426288,1761465043382,-150.0,0.00036116,15]
[392426289,1761465043391,-150.0,0.00036116,15]
[392426290,1761465043400,-153.57149911,0.00036116,15]
[392426291,1761465043409,-230.10394096,0.00036116,15]
[392426292,1761465043419,-1809.57371916,0.00036147,2]
[392426293,1761465043428,-490.65383081,0.00036147,2]
[392426294,1761465043437,-160.56398268,0.00036163,9]
[392426295,1761465043446,-150.0,0.00036171,15]
[392426296,1761465043455,-210.3133997,0.00036171,15]
[392426297,1761465043464,-263.35,0.0003619,2]
[392426298,1761465043473,-1809.57371916,0.00036211,2]
[392426299,1761465043482,-490.65383081,0.00036211,2]
[392426300,1761465043491,-400.0,0.00036219,7]
[392426301,1761465043500,-152.0,0.00036221,5]
[392426302,1761465043509,-250.0,0.00036226,15]
[392426303,1761465043518,-251.0,0.00036239,120]
[392426304,1761465043527,-9523.5543382,0.00036253,3]
[392426305,1761465043536,-923.9,0.00036263,14]
[392426306,1761465043545,-495.07008585,0.00036263,9]
[392426307,1761465043554,-312.61772861,0.00036263,9]
[392426308,1761465043564,-500.0,0.00036263,9]
[392426309,1761465043573,-500.0,0.00036263,9]
[392426310,1761465043584,-500.0,0.00036263,9]
[392426311,1761465043593,-500.0,0.00036263,9]
[392426312,1761465043602,-500.0,0.00036263,9]
[392426313,1761465043611,-500.0,0.00036263,9]
[392426314,1761465043620,-560.28088485,0.00036263,9]
[392426315,1761465043629,-500.0,0.00036263,9]
[392426316,1761465043639,-500.0,0.00036263,9]
[392426317,1761465043648,-500.0,0.00036263,9]
[392426318,1761465043657,-500.0,0.00036263,9]
[392426319,1761465043666,-500.0,0.00036263,9]
[392426320,1761465043675,-745.37,0.00036263,9]
[392426321,1761465043684,-500.0,0.00036263,9]
[392426322,1761465043693,-754.79,0.00036263,2]
[392426323,1761465043702,-500.0,0.00036263,9]
[392426324,1761465043711,-500.0,0.00036263,9]
[392426325,1761465043721,-500.0,0.00036263,9]
[392426326,1761465043730,-156.77929676,0.00036263,9]
[392426327,1761465043739,-500.0,0.00036263,9]
[392426328,1761465043749,-489.8736009,0.00036263,9]
[392426329,1761465043758,-500.0,0.00036263,9]
[392426330,1761465043767,-500.0,0.00036263,9]
[392426331,1761465043776,-500.0,0.00036263,9]
[392426332,1761465043788,-500.0,0.00036263,9]
[392426333,1761465043798,-629.99,0.00036263,9]
[392426334,1761465043807,-500.0,0.00036265,9]
[392426335,1761465043816,-500.0,0.00036265,9]
[392426336,1761465043826,-500.0,0.00036265,9]
[392426337,1761465043834,-235.82,0.00036265,9]
[392426338,1761465043843,-500.0,0.00036265,9]
[392426339,1761465043853,-500.0,0.00036265,9]
[392426340,1761465043862,-242.66,0.00036265,9]
[392426341,1761465043871,-500.0,0.00036265,9]
[392426342,1761465043881,-500.0,0.00036273,5]
[392426343,1761465043890,-160.53486173,0.00036273,5]
[392426344,1761465043899,-504.92968791,0.00036273,5]
[392426345,1761465043909,-166.97955574,0.00036273,5]
[392426346,1761465043921,-463.96852039,0.00036273,5]
[392426347,1761465043931,-200.0,0.00036273,5]
[392426348,1761465043940,-163.93653924,0.00036273,5]
[392426349,1761465043949,-1809.57371916,0.00036275,2]
[392426350,1761465043961,-490.65383081,0.00036275,2]
[392426351,1761465043970,-193.31,0.00036299,2]
[392426352,1761465043980,-500.0,0.000363,13]
[392426353,1761465043990,-4761.7771691,0.00036317,3]
[392426354,1761465044000,-1425.0,0.00036327,2]
[392426355,1761465044009,-1809.57371916,0.0003634,2]
[392426356,1761465044018,-490.65383081,0.0003634,2]
[392426357,1761465044027,-153.861338,0.00036358,30]
[392426358,1761465044037,-151.0,0.00036358,30]
[392426359,1761465044046,-151.0,0.00036358,30]
[392426360,1761465044056,-200.0,0.0003636,2]
[392426361,1761465044065,-200.0,0.0003636,2]
[392426362,1761465044074,-1772.38901858,0.00036368,7]
[392426363,1761465044083,-160.29173159,0.00036373,2]
[392426364,1761465044094,-4761.7771691,0.00036394,3]
[392426365,1761465044104,-1425.0,0.00036394,2]
[392426366,1761465044113,-302.10464773,0.00036396,2]
[392426367,1761465044123,-800.0,0.000364,13]
[392426368,1761465044133,-1809.57371916,0.00036404,2]
[392426369,1761465044142,-490.65383081,0.00036404,2]
[392426370,1761465044151,-226.1192878,0.00036406,2]
[392426371,1761465044160,-263.35,0.00036426,2]
[392426372,1761465044170,-1425.0,0.0003644,2]
[392426373,1761465044179,-4761.7771691,0.00036458,4]
[392426374,1761465044188,-4761.7771691,0.00036465,4]
[392426375,1761465044197,-1182.87834693,0.00036468,2]
[392426376,1761465044206,-187.99373806,0.00036468,2]
[392426377,1761465044217,-1809.57371916,0.00036468,2]
[392426378,1761465044226,-490.65383081,0.00036468,2]
[392426379,1761465044236,-7262.801198,0.00036468,2]
[392426380,1761465044245,-501.8574331,0.00036473,5]
[392426381,1761465044254,-5800.0,0.00036475,2]
[392426382,1761465044262,-151.0,0.00036481,30]
[392426383,1761465044272,-151.0,0.00036481,30]
[392426384,1761465044283,-151.0,0.00036481,30]
[392426385,1761465044292,-4761.7771691,0.00036482,4]
[392426386,1761465044301,-5800.0,0.00036483,2]
[392426387,1761465044310,-4761.7771691,0.0003649,4]
[392426388,1761465044319,-252.398066,0.0003649,30]
[392426389,1761465044328,-252.398066,0.0003649,30]
[392426390,1761465044337,-252.398066,0.0003649,30]
[392426391,1761465044346,-252.398058,0.0003649,30]
[392426392,1761465044355,-150.0,0.00036491,2]
[392426393,1761465044364,-5800.0,0.00036492,2]
[392426394,1761465044373,-150.0,0.000365,17]
[392426395,1761465044382,-215.0,0.000365,17]
[392426396,1761465044391,-5800.0,0.000365,2]
[392426397,1761465044400,-1100.0,0.000365,13]
[392426398,1761465044409,-4761.7771691,0.00036527,4]
[392426399,1761465044418,-923.9,0.00036537,14]
[392426400,1761465044428,-500.0,0.00036537,9]
[392426401,1761465044438,-500.0,0.00036537,9]
[392426402,1761465044447,-500.0,0.00036537,9]
[392426403,1761465044456,-244.18142864,0.00036537,9]
[392426404,1761465044465,-151.0,0.00036537,30]
[392426405,1761465044474,-137.98552207,0.00036537,9]
[392426406,1761465044558,-607.38447793,0.00036537,9]
[392426407,1761465044568,-151.0,0.00036537,30]
[392426408,1761465044579,-151.0,0.00036537,30]
[392426409,1761465044588,-500.0,0.00036537,9]
[392426410,1761465044597,-754.79,0.00036537,2]
[392426411,1761465044606,-500.0,0.00036537,9]
[392426412,1761465044615,-500.0,0.00036537,9]
[392426413,1761465044625,-500.0,0.00036537,9]
[392426414,1761465044634,-500.0,0.00036539,9]
[392426415,1761465044643,-500.0,0.00036539,9]
[392426416,1761465044652,-500.0,0.00036539,9]
[392426417,1761465044661,-469.50966852,0.00036539,9]
[392426418,1761465044671,-500.0,0.00036539,9]
[392426419,1761465044680,-9523.5543382,0.00036557,4]
[392426420,1761465044690,-177.24027425,0.00036558,2]
[392426421,1761465044700,-393.53,0.00036558,2]
[392426422,1761465044709,-151.0,0.00036567,2]
[392426423,1761465044718,-151.0,0.00036567,2]
[392426424,1761465044727,-500.0,0.00036567,7]
[392426425,1761465044736,-500.0,0.00036567,9]
[392426426,1761465044746,-500.0,0.00036567,9]
[392426427,1761465044871,-500.0,0.00036567,9]
[392426428,1761465044882,-500.0,0.00036567,9]
[392426429,1761465044892,-175.0,0.00036567,9]
[392426430,1761465044901,-152.89070277,0.00036567,20]
[392426431,1761465044914,-1295.86944206,0.00036567,30]
[392426432,1761465044924,-1295.86944206,0.00036567,30]
[392426433,1761465044934,-1295.86944206,0.00036567,30]
[392426434,1761465044944,-1295.86944206,0.00036567,30]
[392426435,1761465044954,-1295.86944206,0.00036567,30]
[392426436,1761465044963,-1295.86944206,0.00036567,30]
[392426437,1761465044972,-1295.86944206,0.00036567,30]
[392426438,1761465044982,-1295.86944206,0.00036567,30]
[392426439,1761465044991,-1295.86944206,0.00036567,30]
[392426440,1761465045001,-1295.86944206,0.00036567,30]
[392426441,1761465045010,-1295.86944206,0.00036567,30]
[392426442,1761465045019,-1295.86944206,0.00036567,30]
[392426443,1761465045029,-151.0,0.00036567,30]
[392426444,1761465045038,-209.590715,0.00036567,30]
[392426445,1761465045047,-434.85682387,0.00036567,2]
[392426446,1761465045057,-606538.84504508,0.00036568,120]
[392426447,1761465045691,-160.73755718,0.0003589,15]
[392426448,1761465045702,-355.31557786,0.00035991,9]
[392426449,1761465045865,-144.68442214,0.00035991,9]
[392426450,1761465045875,-140.61135308,0.00036567,2]
[392426451,1761465045922,-10.38864692,0.00036567,2]
[392426452,1761465045932,-301.18332806,0.00036567,2]
[392426453,1761465045942,-590.46598901,0.00036568,120]
[392432995,1761465145451,501.9876723,0.00022155,2]
[392432996,1761465419869,197.4,0.00013699,2]
[392432997,1761465420071,197.4,0.00020187,2]
[392433003,1761466231810,-1092.0,0.00023322,2]
[392433004,1761466231820,-1092.0,0.00024549,2]
[392433005,1761466231829,-4000.0,0.00025,7]
[392433007,1761466231838,-1092.0,0.00025841,2]
[392433008,1761466231847,-197.4,0.00026676,2]
[392433009,1761466231857,-1092.0,0.00027133,2]
[392433010,1761466231866,-1092.0,0.0002849,5]
[392433011,1761466231875,-300.0,0.00029913,2]
[392433012,1761466231884,-803.63685182,0.00029914,5]
[392433013,1761466231896,-288.36314818,0.00029914,5]
[392433014,1761466231905,-154.35,0.00029996,2]
[392433015,1761466231914,-1092.0,0.0003141,5]
[392433016,1761466231923,-231.52698494,0.00032,120]
[392433017,1761466231932,-231.52698494,0.00033,120]
[392433018,1761466231942,-197.4,0.00033165,2]
[392433019,1761466231951,-151.0,0.00034545,2]
[392433020,1761466231959,-151.0,0.00034545,2]
[392433021,1761466231969,-151.0,0.00034545,2]
[392433022,1761466231978,-151.0,0.00034545,2]
[392433023,1761466231988,-151.0,0.00034545,2]
[392433024,1761466231997,-151.0,0.00034545,2]
[392433025,1761466232006,-151.0,0.00034545,2]
[392433026,1761466232016,-151.0,0.00034545,2]
[392433027,1761466232025,-151.0,0.00034545,2]
[392433028,1761466232034,-151.0,0.00034545,2]
[392433029,1761466232044,-151.0,0.00034545,2]
[392433030,1761466232054,-151.0,0.00034545,2]
[392433031,1761466232063,-151.0,0.00034545,2]
[392433032,1761466232073,-151.0,0.00034545,2]
[392433033,1761466232082,-151.0,0.00034545,2]
[392433034,1761466232091,-769.92,0.00034545,14]
[392433035,1761466232101,-383.0,0.00034565,2]
[392433037,1761466232110,-511.136,0.00034566,2]
[392433039,1761466232120,-1456.946,0.00034566,2]
[392433041,1761466232129,-364.90285404,0.00034566,2]
[392433043,1761466232140,-453.09714596,0.00034566,2]
[392433045,1761466232150,-599.3311472,0.00034566,2]
[392433047,1761466232161,-260.1217766,0.00034566,2]
[392433049,1761466232172,-409.5470762,0.00034566,2]
[392433051,1761466232181,-3487.0,0.00034566,2]
[392433053,1761466232191,-903.0,0.00034566,2]
[392433055,1761466232199,-500.0,0.0003468,5]
[392433057,1761466232208,-504.90191521,0.0003468,5]
[392433059,1761466232217,-769.92,0.00034819,14]
[392433061,1761466232227,-624.28610612,0.00034923,7]
[392433063,1761466232236,-150.0,0.00034959,2]
[392433065,1761466232244,-150.0,0.00034959,120]
[392433067,1761466232253,-179.3,0.00034968,2]
[392433069,1761466232263,-150.0,0.00034977,2]
[392433071,1761466232272,-769.92,0.00035093,14]
[392433073,1761466232280,-3121.27,0.00035098,2]
[392433075,1761466232289,-277.17,0.00035245,2]
[392433077,1761466232299,-475.22,0.00035266,2]
[392433079,1761466232307,-2009.6,0.00035267,2]
[392433081,1761466232318,-300.0,0.00035322,7]
[392433083,1761466232327,-769.92,0.00035367,14]
[392433085,1761466232336,-1060.70838117,0.00035469,2]
[392433087,1761466232345,-2932.48,0.00035518,2]
[392433088,1761466232355,-500.0,0.00035594,2]
[392433091,1761466232364,-202.87797368,0.00035616,2]
[392433092,1761466232373,-769.92,0.00035641,14]
[392433094,1761466232382,-1011.51,0.00035716,2]
[392433096,1761466232391,-769.92,0.00035915,14]
[392433098,1761466232400,-500.0,0.00035989,2]
[392433100,1761466232409,-500.0,0.00035989,2]
[392433101,1761466232419,-243.237,0.0003599,43]
[392433102,1761466232427,-500.0,0.00035991,2]
[392433103,1761466232436,-500.0,0.00035991,9]
[392433104,1761466232445,-500.0,0.00035991,9]
[392433105,1761466232454,-500.0,0.00035991,9]
[392433106,1761466232463,-500.0,0.00035991,9]
[392433107,1761466232472,-500.0,0.00035991,9]
[392433108,1761466232481,-168.0,0.00036065,2]
[392433109,1761466232491,-500.0,0.00036226,15]
[392433110,1761466232500,-185.55644604,0.00036226,15]
[392433111,1761466232509,-262.52300605,0.00036265,9]
[392433112,1761466232519,-500.0,0.00036265,9]
[392433113,1761466232528,-500.0,0.00036281,15]
[392433114,1761466232537,-1425.0,0.00036303,2]
[392433115,1761466232551,-166.67,0.00036313,2]
[392433116,1761466232560,-1425.0,0.00036324,2]
[392433117,1761466232569,-500.0,0.00036336,15]
[392433118,1761466232579,-1425.0,0.00036382,2]
[392433119,1761466232587,-2004.0499,0.00036384,3]
[392433120,1761466232596,-2000.0,0.00036384,3]
[392433121,1761466232606,-500.0,0.0003639,15]
[392433122,1761466232616,-500.0,0.00036445,15]
[392433123,1761466232625,-1425.0,0.00036458,2]
[392433124,1761466232634,-788.58556462,0.00036468,2]
[392433125,1761466232643,-154.79067595,0.00036468,2]
[392433126,1761466232652,-170.39198207,0.00036468,2]
[392433127,1761466232660,-1363.49067134,0.00036468,8]
[392433128,1761466232670,-4841.86746534,0.00036468,2]
[392433129,1761466232678,-995.70389879,0.0003647,2]
[392433130,1761466232688,-1425.0,0.00036474,2]
[392433131,1761466232697,-300.2,0.00036493,5]
[392433132,1761466232706,-500.0,0.000365,15]
[392433133,1761466232715,-2070.29761675,0.000365,2]
[392433134,1761466232727,-3729.70238325,0.000365,2]
[392433135,1761466232736,-195.0,0.000365,17]
[392433136,1761466232745,-1425.0,0.0003651,2]
[392433137,1761466232754,-1425.0,0.00036511,2]
[392433138,1761466232763,-500.0,0.00036539,9]
[392433139,1761466232773,-500.0,0.00036555,15]
[392433140,1761466232782,-500.0,0.00036557,9]
[392433141,1761466232791,-500.0,0.00036557,9]
[392433142,1761466232800,-500.0,0.00036557,9]
[392433143,1761466232811,-652.2,0.00036557,9]
[392433144,1761466232820,-500.0,0.00036557,9]
[392433145,1761466232829,-197.12024824,0.00036557,9]
[392433146,1761466232839,-500.0,0.00036557,9]
[392433147,1761466232850,-500.0,0.00036557,9]
[392433148,1761466232859,-500.0,0.00036557,9]
[392433149,1761466232869,-500.0,0.00036557,9]
[392433150,1761466232878,-35949.0030408,0.00036558,4]
[392433151,1761466232893,-500.0,0.00036454,15]
[392433152,1761466232902,-399.99999643,0.00036558,4]
[392433153,1761466232914,-522.04790989,0.00036558,4]
[392433154,1761466232926,-2121.33853298,0.00036558,4]
[392433155,1761466232947,-500.0,0.00036454,15]
[392433156,1761466232956,-6711.0,0.00036558,4]
[392433158,1761466237930,-383.06808058,0.00036454,15]
[392433159,1761466237942,-116.93191942,0.00036454,15]
[392433160,1761466237951,-500.0,0.00036454,15]
[392433161,1761466237961,-500.0,0.00036454,15]
[392433162,1761466237971,-500.0,0.00036454,15]
[392433163,1761466237980,-14.93912213,0.00036454,15]
[392433164,1761466237991,-485.06087787,0.00036454,15]
[392433165,1761466238001,-500.0,0.00036454,15]
[392433166,1761466238010,-500.0,0.00036454,15]
[392433167,1761466238019,-500.0,0.00036454,15]
[392433168,1761466238028,-500.0,0.00036454,15]
[392433169,1761466238037,-500.0,0.00036454,15]
[392433170,1761466238047,-304.56743455,0.00036454,15]
[392433171,1761466238058,-195.43256545,0.00036454,15]
[392433172,1761466238068,-500.0,0.00036454,15]
[392433173,1761466238077,-163.64695083,0.00036454,15]
[392433174,1761466238087,-640.94410872,0.00036558,4]
[392433189,1761466239931,-6035.21527178,0.00036558,4]
[392433191,1761466239941,-500.0,0.00036566,30]
[392433193,1761466239950,-500.0,0.00036566,30]
[392433195,1761466239959,-500.0,0.00036566,30]
[392433197,1761466239968,-500.0,0.00036566,30]
[392433199,1761466239977,-500.0,0.00036566,30]
[392433201,1761466239987,-250.0,0.00036566,30]
[392433202,1761466239996,-500.0,0.00036566,30]
[392433204,1761466240004,-500.0,0.00036566,30]
[392433205,1761466240013,-500.0,0.00036566,30]
[392433207,1761466240023,-500.0,0.00036566,30]
[392433209,1761466240031,-385.78472822,0.00036566,30]
[392433210,1761466240043,-114.21527178,0.00036566,30]
[392433212,1761466240052,-500.0,0.00036566,30]